[Event "Late-Titled-Tuesday-Blitz-April-30-2024"]
[Site "Chess.com"]
[Date "2024.04.30"]
[Round "7"]
[White "vanyakuba"]
[Black "azikom"]
[Result "0-1"]
[WhiteElo "2402"]
[BlackElo "2718"]
[TimeControl "180+1"]
[EndTime "15:18:11 PDT"]
[Termination "azikom won by resignation"]

1. e4 {[%clk 0:03:00.9]} 1... c6 {[%clk 0:02:59.6]} 2. d4 {[%clk 0:03:00.6]}
2... d5 {[%clk 0:03:00]} 3. exd5 {[%clk 0:03:01.5]} 3... cxd5 {[%clk 0:03:00.2]}
4. c4 {[%clk 0:03:02.4]} 4... e6 {[%clk 0:03:00.1]} 5. Nc3 {[%clk 0:03:02.7]}
5... Nf6 {[%clk 0:03:00.5]} 6. Nf3 {[%clk 0:03:02.6]} 6... Bb4 {[%clk
0:02:59.6]} 7. cxd5 {[%clk 0:03:03.2]} 7... Nxd5 {[%clk 0:02:59.3]} 8. Bd2
{[%clk 0:03:03.6]} 8... Nc6 {[%clk 0:02:59.3]} 9. Bd3 {[%clk 0:03:03.3]} 9...
Nf6 {[%clk 0:02:58.6]} 10. Bg5 {[%clk 0:03:00.7]} 10... h6 {[%clk 0:02:57.1]}
11. Bh4 {[%clk 0:02:59.3]} 11... Be7 {[%clk 0:02:55]} 12. O-O {[%clk 0:02:58.6]}
12... O-O {[%clk 0:02:55.5]} 13. a3 {[%clk 0:02:58.8]} 13... b6 {[%clk 0:02:55]}
14. Bc2 {[%clk 0:02:59.1]} 14... Ba6 {[%clk 0:02:54.7]} 15. Re1 {[%clk
0:02:58.9]} 15... Rc8 {[%clk 0:02:47.4]} 16. Rc1 {[%clk 0:02:58.3]} 16... Na5
{[%clk 0:02:45.7]} 17. Ne5 {[%clk 0:02:49.3]} 17... Nd5 {[%clk 0:02:26.7]} 18.
Bxe7 {[%clk 0:02:40.8]} 18... Nxe7 {[%clk 0:02:26.2]} 19. Qg4 {[%clk 0:02:11.1]}
19... Bb7 {[%clk 0:02:07.7]} 20. Rcd1 {[%clk 0:01:35.4]} 20... Nd5 {[%clk
0:02:03.5]} 21. Nxd5 {[%clk 0:01:26.7]} 21... Rxc2 {[%clk 0:01:50.8]} 22. Nf4
{[%clk 0:01:18.8]} 22... Qg5 {[%clk 0:01:38.3]} 23. b4 {[%clk 0:00:54.9]} 23...
Nc4 {[%clk 0:01:13.5]} 24. Qxg5 {[%clk 0:00:27.9]} 24... hxg5 {[%clk 0:01:13.3]}
25. Nh3 {[%clk 0:00:27.7]} 25... Nxe5 {[%clk 0:01:01]} 26. dxe5 {[%clk
0:00:26.4]} 26... g4 {[%clk 0:00:57.1]} 27. Nf4 {[%clk 0:00:23.7]} 27... Rfc8
{[%clk 0:00:53.2]} 28. Ne2 {[%clk 0:00:14.1]} 28... Ra2 {[%clk 0:00:40.2]} 29.
Nd4 {[%clk 0:00:10.5]} 29... Bd5 {[%clk 0:00:34.7]} 30. b5 {[%clk 0:00:10]}
30... Rxa3 {[%clk 0:00:28.8]} 31. Ra1 {[%clk 0:00:09.3]} 31... Rcc3 {[%clk
0:00:27.5]} 32. Ne2 {[%clk 0:00:04]} 32... Rxa1 {[%clk 0:00:25.5]} 33. Rxa1
{[%clk 0:00:04.9]} 33... Rc2 {[%clk 0:00:24.7]} 34. Nd4 {[%clk 0:00:04.9]} 34...
Rc4 {[%clk 0:00:23.4]} 35. Ne2 {[%clk 0:00:04.2]} 35... Rb4 {[%clk 0:00:20.5]}
36. h3 {[%clk 0:00:04.2]} 36... gxh3 {[%clk 0:00:20]} 37. gxh3 {[%clk
0:00:05.1]} 37... Rxb5 {[%clk 0:00:20.3]} 38. Rxa7 {[%clk 0:00:05.6]} 38... Rb3
{[%clk 0:00:18.3]} 39. Nf4 {[%clk 0:00:04.7]} 39... Be4 {[%clk 0:00:15.7]} 40.
Rd7 {[%clk 0:00:03.8]} 40... b5 {[%clk 0:00:15]} 41. Rd8+ {[%clk 0:00:04.7]}
41... Kh7 {[%clk 0:00:14.8]} 42. Rb8 {[%clk 0:00:05.6]} 42... b4 {[%clk
0:00:14.1]} 43. Rd8 {[%clk 0:00:04.2]} 43... Rb1+ {[%clk 0:00:13.7]} 44. Kh2
{[%clk 0:00:03.6]} 44... b3 {[%clk 0:00:14.3]} 45. Kg3 {[%clk 0:00:03.2]} 45...
Rg1+ {[%clk 0:00:13.3]} 46. Kh4 {[%clk 0:00:03.4]} 46... g5+ {[%clk 0:00:12.6]}
47. Kh5 {[%clk 0:00:03.2]} 47... gxf4 {[%clk 0:00:12.8]} 48. Rd7 {[%clk
0:00:04.1]} 48... Bg6+ {[%clk 0:00:12.8]} 49. Kh4 {[%clk 0:00:04.7]} 49... b2
{[%clk 0:00:13.1]} 50. Rb7 {[%clk 0:00:05.2]} 50... b1=Q {[%clk 0:00:12.7]} 0-1

[Event "Late-Titled-Tuesday-Blitz-April-30-2024"]
[Site "Chess.com"]
[Date "2024.04.30"]
[Round "7"]
[White "rhwr"]
[Black "cthake"]
[Result "1-0"]
[WhiteElo "2276"]
[BlackElo "1866"]
[TimeControl "180+1"]
[EndTime "15:18:12 PDT"]
[Termination "rhwr won on time"]

1. e4 {[%clk 0:03:00.9]} 1... e6 {[%clk 0:02:59.2]} 2. Nf3 {[%clk 0:03:00.3]}
2... d5 {[%clk 0:02:59.2]} 3. e5 {[%clk 0:03:01]} 3... c5 {[%clk 0:02:58.6]} 4.
b4 {[%clk 0:03:01.6]} 4... Nc6 {[%clk 0:02:56.2]} 5. b5 {[%clk 0:02:49.7]} 5...
Nb8 {[%clk 0:02:55]} 6. c3 {[%clk 0:02:49]} 6... Bd7 {[%clk 0:02:53.9]} 7. d4
{[%clk 0:02:48.9]} 7... c4 {[%clk 0:02:50.5]} 8. a4 {[%clk 0:02:47.4]} 8... a6
{[%clk 0:02:50.4]} 9. Ba3 {[%clk 0:02:36.6]} 9... Bxa3 {[%clk 0:02:43.7]} 10.
Nxa3 {[%clk 0:02:35.8]} 10... axb5 {[%clk 0:02:36]} 11. axb5 {[%clk 0:02:34.7]}
11... Qe7 {[%clk 0:02:32.3]} 12. Qc1 {[%clk 0:02:30]} 12... Nh6 {[%clk
0:02:29.3]} 13. Be2 {[%clk 0:02:28.2]} 13... O-O {[%clk 0:02:27.2]} 14. O-O
{[%clk 0:02:28]} 14... Ra5 {[%clk 0:02:03.6]} 15. Qb2 {[%clk 0:02:26.7]} 15...
b6 {[%clk 0:02:00.4]} 16. Rfb1 {[%clk 0:01:59.8]} 16... Nf5 {[%clk 0:01:42.4]}
17. Qd2 {[%clk 0:01:49.1]} 17... h6 {[%clk 0:01:36.7]} 18. Nc2 {[%clk
0:01:41.1]} 18... Rxa1 {[%clk 0:01:30.7]} 19. Nxa1 {[%clk 0:01:39.5]} 19... Qa3
{[%clk 0:01:24.9]} 20. Qb2 {[%clk 0:01:35.6]} 20... Qxb2 {[%clk 0:01:21.1]} 21.
Rxb2 {[%clk 0:01:35.3]} 21... Ne7 {[%clk 0:01:12]} 22. Nc2 {[%clk 0:01:33.3]}
22... Nc8 {[%clk 0:01:11.8]} 23. Na3 {[%clk 0:01:29.7]} 23... Na7 {[%clk
0:01:11.9]} 24. g3 {[%clk 0:01:24]} 24... g6 {[%clk 0:01:02.5]} 25. Bd1 {[%clk
0:01:23.3]} 25... Rd8 {[%clk 0:00:51.4]} 26. Kg2 {[%clk 0:01:22.7]} 26... Kf8
{[%clk 0:00:51.2]} 27. h4 {[%clk 0:01:18.3]} 27... h5 {[%clk 0:00:41.3]} 28. Ng5
{[%clk 0:01:16.6]} 28... Ke7 {[%clk 0:00:40]} 29. Nh7 {[%clk 0:01:12]} 29... Rh8
{[%clk 0:00:37.4]} 30. Nf6 {[%clk 0:01:11.8]} 30... Rd8 {[%clk 0:00:36.9]} 31.
f3 {[%clk 0:01:11.3]} 31... Be8 {[%clk 0:00:31.6]} 32. g4 {[%clk 0:01:11]} 32...
hxg4 {[%clk 0:00:29.6]} 33. fxg4 {[%clk 0:01:10.9]} 33... Nd7 {[%clk 0:00:28.4]}
34. Ng8+ {[%clk 0:00:55]} 34... Kf8 {[%clk 0:00:27]} 35. Nh6 {[%clk 0:00:54.8]}
35... Kg7 {[%clk 0:00:26.5]} 36. g5 {[%clk 0:00:54.8]} 36... f5 {[%clk
0:00:22.4]} 37. exf6+ {[%clk 0:00:53.3]} 37... Nxf6 {[%clk 0:00:20.7]} 38. gxf6+
{[%clk 0:00:49.4]} 38... Kxh6 {[%clk 0:00:21.2]} 39. Bg4 {[%clk 0:00:48.7]}
39... Bf7 {[%clk 0:00:20.8]} 40. Re2 {[%clk 0:00:43.8]} 40... Rd6 {[%clk
0:00:19]} 41. Re5 {[%clk 0:00:38.3]} 41... Nc8 {[%clk 0:00:16.4]} 42. Kg3 {[%clk
0:00:37.6]} 42... Na7 {[%clk 0:00:16.3]} 43. Kf4 {[%clk 0:00:37]} 43... Nc8
{[%clk 0:00:15.8]} 44. Re2 {[%clk 0:00:34.2]} 44... Bg8 {[%clk 0:00:15.1]} 45.
Ke5 {[%clk 0:00:33.3]} 45... Bf7 {[%clk 0:00:14.6]} 46. Rh2 {[%clk 0:00:31.5]}
46... Bg8 {[%clk 0:00:14]} 47. Nc2 {[%clk 0:00:28.8]} 47... Bf7 {[%clk
0:00:12.3]} 48. Ne3 {[%clk 0:00:28.8]} 48... Rd8 {[%clk 0:00:07.8]} 49. Bf3
{[%clk 0:00:26.1]} 49... Na7 {[%clk 0:00:06.8]} 50. Ng4+ {[%clk 0:00:25.5]}
50... Kh7 {[%clk 0:00:05.2]} 51. Kf4 {[%clk 0:00:25.1]} 51... Nxb5 {[%clk
0:00:05.3]} 52. Ne5 {[%clk 0:00:25.5]} 52... Rf8 {[%clk 0:00:03.5]} 53. Rc2
{[%clk 0:00:23.7]} 53... Nd6 {[%clk 0:00:02.7]} 54. Rb2 {[%clk 0:00:22.1]} 54...
b5 {[%clk 0:00:02.7]} 55. Ra2 {[%clk 0:00:22.3]} 55... Kh6 {[%clk 0:00:00.8]}
56. Ra7 {[%clk 0:00:19.7]} 1-0

[Event "Late-Titled-Tuesday-Blitz-April-30-2024"]
[Site "Chess.com"]
[Date "2024.04.30"]
[Round "7"]
[White "TigrVShlyape"]
[Black "GoltsevDmitry2000"]
[Result "1-0"]
[WhiteElo "2938"]
[BlackElo "2814"]
[TimeControl "180+1"]
[EndTime "15:18:14 PDT"]
[Termination "TigrVShlyape won by resignation"]

1. d4 {[%clk 0:03:00.9]} 1... e6 {[%clk 0:03:00.1]} 2. Bf4 {[%clk 0:02:59.5]}
2... Nf6 {[%clk 0:02:58.8]} 3. e3 {[%clk 0:02:59.8]} 3... d5 {[%clk 0:02:58.5]}
4. Nf3 {[%clk 0:02:59.6]} 4... Nbd7 {[%clk 0:02:58.4]} 5. Nbd2 {[%clk
0:02:57.8]} 5... Ne4 {[%clk 0:02:58.4]} 6. Nxe4 {[%clk 0:02:56.3]} 6... dxe4
{[%clk 0:02:59.3]} 7. Nd2 {[%clk 0:02:55.6]} 7... Nf6 {[%clk 0:02:57.6]} 8. c3
{[%clk 0:02:53]} 8... Bd6 {[%clk 0:02:57.6]} 9. Bg5 {[%clk 0:02:53.2]} 9... Be7
{[%clk 0:02:52.9]} 10. Bxf6 {[%clk 0:02:53]} 10... gxf6 {[%clk 0:02:53.1]} 11.
Nxe4 {[%clk 0:02:53.3]} 11... f5 {[%clk 0:02:53.7]} 12. Nd2 {[%clk 0:02:52.1]}
12... Bd7 {[%clk 0:02:54.1]} 13. Qb3 {[%clk 0:02:50.3]} 13... Rb8 {[%clk
0:02:42.9]} 14. Be2 {[%clk 0:02:50.1]} 14... Rg8 {[%clk 0:02:39.9]} 15. Bf3
{[%clk 0:02:48.7]} 15... b6 {[%clk 0:02:39.3]} 16. a4 {[%clk 0:02:47.5]} 16...
c5 {[%clk 0:02:32.5]} 17. Nc4 {[%clk 0:02:42.2]} 17... Qc7 {[%clk 0:02:29]} 18.
Ne5 {[%clk 0:02:41.7]} 18... Bd6 {[%clk 0:02:26.6]} 19. Nxd7 {[%clk 0:02:40.6]}
19... Qxd7 {[%clk 0:02:27.5]} 20. O-O {[%clk 0:02:35.6]} 20... Qc7 {[%clk
0:02:19.4]} 21. h3 {[%clk 0:02:34.7]} 21... Ke7 {[%clk 0:02:16.6]} 22. Rfd1
{[%clk 0:02:32.7]} 22... Rg6 {[%clk 0:02:11.8]} 23. Qb5 {[%clk 0:02:20]} 23...
Rbg8 {[%clk 0:02:04.2]} 24. Kf1 {[%clk 0:02:18.3]} 24... Rb8 {[%clk 0:01:39.5]}
25. Rd2 {[%clk 0:02:10.1]} 25... Rgg8 {[%clk 0:01:37.3]} 26. Rad1 {[%clk
0:02:08.9]} 26... Rgd8 {[%clk 0:01:37.6]} 27. Qd3 {[%clk 0:01:58]} 27... c4
{[%clk 0:01:25.8]} 28. Qc2 {[%clk 0:01:48.1]} 28... Qd7 {[%clk 0:01:25.5]} 29.
e4 {[%clk 0:01:45.2]} 29... fxe4 {[%clk 0:01:22]} 30. Qxe4 {[%clk 0:01:45]}
30... Qxa4 {[%clk 0:01:20.6]} 31. Qh4+ {[%clk 0:01:44.8]} 31... Kd7 {[%clk
0:01:17.8]} 32. Qxh7 {[%clk 0:01:43.6]} 32... Rf8 {[%clk 0:01:17.4]} 33. Re1
{[%clk 0:01:41.1]} 33... Rbe8 {[%clk 0:01:12.8]} 34. Rdd1 {[%clk 0:01:37.7]}
34... a5 {[%clk 0:01:11]} 35. Qe4 {[%clk 0:01:35.9]} 35... Rb8 {[%clk
0:01:08.4]} 36. d5 {[%clk 0:01:34.1]} 36... e5 {[%clk 0:01:06.4]} 37. Qf5+
{[%clk 0:01:34.1]} 37... Kc7 {[%clk 0:01:06.1]} 38. Rxe5 {[%clk 0:01:34.2]}
38... Bxe5 {[%clk 0:01:00.5]} 39. Qxe5+ {[%clk 0:01:34.4]} 39... Kb7 {[%clk
0:01:00.8]} 40. d6+ {[%clk 0:01:34.1]} 40... Ka6 {[%clk 0:01:00.1]} 41. d7
{[%clk 0:01:31.8]} 41... Rfd8 {[%clk 0:00:54.5]} 42. Qd6 {[%clk 0:01:20.5]}
42... Qb5 {[%clk 0:00:47.8]} 43. Rd2 {[%clk 0:01:19.6]} 43... f6 {[%clk
0:00:30.3]} 44. h4 {[%clk 0:01:13.9]} 44... Qe5 {[%clk 0:00:29.8]} 45. Qc6
{[%clk 0:01:08.1]} 45... Qb5 {[%clk 0:00:10.7]} 46. Qxf6 {[%clk 0:01:01.3]}
46... Qa4 {[%clk 0:00:03.1]} 47. Qd4 {[%clk 0:00:58.7]} 47... Qb5 {[%clk
0:00:02.8]} 48. g3 {[%clk 0:00:56.6]} 48... Rf8 {[%clk 0:00:03.1]} 49. Kg2
{[%clk 0:00:56.2]} 49... Rbd8 {[%clk 0:00:03.5]} 50. g4 {[%clk 0:00:48.8]} 50...
Rb8 {[%clk 0:00:03.7]} 51. h5 {[%clk 0:00:47.8]} 51... Rfd8 {[%clk 0:00:03.7]}
52. Qd6 {[%clk 0:00:45.7]} 52... Qg5 {[%clk 0:00:03.4]} 53. Rd5 {[%clk
0:00:44.8]} 53... Qg7 {[%clk 0:00:02.2]} 54. Be2 {[%clk 0:00:42.1]} 54... Rb7
{[%clk 0:00:02.1]} 55. Bxc4+ {[%clk 0:00:42]} 55... Ka7 {[%clk 0:00:02.7]} 56.
Qg6 {[%clk 0:00:37.7]} 56... Qxg6 {[%clk 0:00:02.2]} 57. hxg6 {[%clk 0:00:37.8]}
57... Rbxd7 {[%clk 0:00:03.1]} 58. Rxd7+ {[%clk 0:00:37.9]} 58... Rxd7 {[%clk
0:00:04]} 59. Bf7 {[%clk 0:00:38.2]} 59... a4 {[%clk 0:00:02.2]} 60. g7 {[%clk
0:00:38]} 60... Rxf7 {[%clk 0:00:02.8]} 61. g8=Q {[%clk 0:00:37.9]} 61... Rb7
{[%clk 0:00:03.7]} 62. Qc4 {[%clk 0:00:36.8]} 62... a3 {[%clk 0:00:04.6]} 63.
bxa3 {[%clk 0:00:35.9]} 63... b5 {[%clk 0:00:05.5]} 64. Qc5+ {[%clk 0:00:35.9]}
64... Ka8 {[%clk 0:00:04.7]} 65. g5 {[%clk 0:00:35.9]} 65... Rb6 {[%clk
0:00:03.3]} 66. Qxb6 {[%clk 0:00:35.5]} 66... b4 {[%clk 0:00:03.8]} 67. Qc6+
{[%clk 0:00:35.3]} 1-0

[Event "Late-Titled-Tuesday-Blitz-April-30-2024"]
[Site "Chess.com"]
[Date "2024.04.30"]
[Round "7"]
[White "IngOscarArdila"]
[Black "ATM622"]
[Result "1-0"]
[WhiteElo "2333"]
[BlackElo "2499"]
[TimeControl "180+1"]
[EndTime "15:18:15 PDT"]
[Termination "IngOscarArdila won by resignation"]

1. d4 {[%clk 0:03:00.1]} 1... d5 {[%clk 0:02:59.2]} 2. Nf3 {[%clk 0:03:00.2]}
2... Nf6 {[%clk 0:02:59.1]} 3. e3 {[%clk 0:03:00.6]} 3... Bf5 {[%clk 0:02:58.4]}
4. Bd3 {[%clk 0:03:00.3]} 4... Bxd3 {[%clk 0:02:57.5]} 5. Qxd3 {[%clk
0:03:01.2]} 5... Nbd7 {[%clk 0:02:56.3]} 6. O-O {[%clk 0:03:00.9]} 6... e6
{[%clk 0:02:56.3]} 7. c3 {[%clk 0:02:59.9]} 7... c5 {[%clk 0:02:56.4]} 8. Nbd2
{[%clk 0:02:59.5]} 8... Be7 {[%clk 0:02:55.5]} 9. e4 {[%clk 0:02:59.7]} 9...
dxe4 {[%clk 0:02:55.7]} 10. Nxe4 {[%clk 0:02:59.8]} 10... Nxe4 {[%clk
0:02:55.9]} 11. Qxe4 {[%clk 0:02:59.9]} 11... Rb8 {[%clk 0:02:52.4]} 12. Bf4
{[%clk 0:02:58.8]} 12... Nf6 {[%clk 0:02:50.9]} 13. Qe2 {[%clk 0:02:50.3]} 13...
Rc8 {[%clk 0:02:49.4]} 14. Rfd1 {[%clk 0:02:46.2]} 14... Qb6 {[%clk 0:02:44.7]}
15. Ne5 {[%clk 0:02:30.1]} 15... O-O {[%clk 0:02:37.1]} 16. dxc5 {[%clk
0:02:26.8]} 16... Bxc5 {[%clk 0:02:33.8]} 17. Nd7 {[%clk 0:02:24.8]} 17... Nxd7
{[%clk 0:02:33.5]} 18. Rxd7 {[%clk 0:02:25.7]} 18... Rfd8 {[%clk 0:02:07.8]} 19.
Rad1 {[%clk 0:02:24.7]} 19... Rxd7 {[%clk 0:02:07.3]} 20. Rxd7 {[%clk
0:02:25.6]} 20... Qc6 {[%clk 0:02:07]} 21. Qd3 {[%clk 0:02:16.3]} 21... h6
{[%clk 0:02:05.3]} 22. Rd8+ {[%clk 0:01:58.6]} 22... Rxd8 {[%clk 0:02:04.5]} 23.
Qxd8+ {[%clk 0:01:59.5]} 23... Kh7 {[%clk 0:02:04.8]} 24. Qd3+ {[%clk
0:01:58.9]} 24... g6 {[%clk 0:02:04.5]} 25. Be5 {[%clk 0:01:41.9]} 25... Be7
{[%clk 0:01:50.1]} 26. Qd4 {[%clk 0:01:27.1]} 26... Qc5 {[%clk 0:01:42.1]} 27.
Qxc5 {[%clk 0:01:05]} 27... Bxc5 {[%clk 0:01:42.1]} 28. Kf1 {[%clk 0:01:05.3]}
28... g5 {[%clk 0:01:41.6]} 29. Ke2 {[%clk 0:01:04.9]} 29... Kg6 {[%clk
0:01:41.7]} 30. f3 {[%clk 0:01:03.9]} 30... Kf5 {[%clk 0:01:41.7]} 31. Bb8
{[%clk 0:01:03.1]} 31... e5 {[%clk 0:01:33.7]} 32. g4+ {[%clk 0:01:02.4]} 32...
Ke6 {[%clk 0:01:33.5]} 33. Kd3 {[%clk 0:01:01.7]} 33... Bb6 {[%clk 0:01:32.9]}
34. Ke4 {[%clk 0:01:00.3]} 34... f6 {[%clk 0:01:32.2]} 35. a4 {[%clk 0:00:46.1]}
35... a5 {[%clk 0:01:19.4]} 36. b4 {[%clk 0:00:45.8]} 36... Kd7 {[%clk
0:00:55.3]} 37. Kf5 {[%clk 0:00:41.7]} 37... Bg1 {[%clk 0:00:37.2]} 38. h3
{[%clk 0:00:41.4]} 38... Ke7 {[%clk 0:00:35]} 39. Kg6 {[%clk 0:00:39.7]} 39...
Ke6 {[%clk 0:00:26.6]} 40. Kxh6 {[%clk 0:00:38.4]} 40... Be3 {[%clk 0:00:20.1]}
41. Bc7 {[%clk 0:00:36.6]} 41... axb4 {[%clk 0:00:18.3]} 42. cxb4 {[%clk
0:00:37]} 42... Kd7 {[%clk 0:00:13]} 43. Bb8 {[%clk 0:00:32.5]} 43... Bd2 {[%clk
0:00:11.4]} 44. b5 {[%clk 0:00:31.2]} 44... Ke6 {[%clk 0:00:10.6]} 45. Kg6
{[%clk 0:00:30.9]} 45... Be1 {[%clk 0:00:10.2]} 46. Bc7 {[%clk 0:00:30.4]} 46...
Kd7 {[%clk 0:00:08.1]} 47. Bb6 {[%clk 0:00:30]} 47... Ke6 {[%clk 0:00:08.2]} 48.
Bc5 {[%clk 0:00:29.6]} 48... Ba5 {[%clk 0:00:06.6]} 49. Bf8 {[%clk 0:00:29.3]}
49... Kd5 {[%clk 0:00:03.7]} 50. Be7 {[%clk 0:00:28.1]} 50... Kc4 {[%clk
0:00:03.4]} 51. Bxf6 {[%clk 0:00:27.8]} 51... Kb3 {[%clk 0:00:03.6]} 52. Bxe5
{[%clk 0:00:26.3]} 52... Kxa4 {[%clk 0:00:03.7]} 53. Kxg5 {[%clk 0:00:23.2]}
53... Kxb5 {[%clk 0:00:03.8]} 54. h4 {[%clk 0:00:22.8]} 54... Kc4 {[%clk
0:00:03.8]} 55. h5 {[%clk 0:00:23.1]} 55... Bc3 {[%clk 0:00:02.3]} 56. Bxc3
{[%clk 0:00:20.5]} 56... Kxc3 {[%clk 0:00:02.4]} 57. h6 {[%clk 0:00:21.1]} 57...
b5 {[%clk 0:00:03.3]} 58. h7 {[%clk 0:00:21.5]} 1-0

[Event "Late-Titled-Tuesday-Blitz-April-30-2024"]
[Site "Chess.com"]
[Date "2024.04.30"]
[Round "7"]
[White "jaramsdal"]
[Black "Djager97"]
[Result "0-1"]
[WhiteElo "2391"]
[BlackElo "2570"]
[TimeControl "180+1"]
[EndTime "15:18:16 PDT"]
[Termination "Djager97 won on time"]

1. e4 {[%clk 0:03:00.9]} 1... e5 {[%clk 0:02:59.6]} 2. Nf3 {[%clk 0:03:00.8]}
2... Nc6 {[%clk 0:03:00.3]} 3. Bc4 {[%clk 0:03:01.2]} 3... Bc5 {[%clk
0:02:59.7]} 4. O-O {[%clk 0:02:56.6]} 4... Nf6 {[%clk 0:02:59.3]} 5. d3 {[%clk
0:02:56.2]} 5... d6 {[%clk 0:02:58.6]} 6. c3 {[%clk 0:02:56]} 6... a6 {[%clk
0:02:58.4]} 7. b4 {[%clk 0:02:49.7]} 7... Ba7 {[%clk 0:02:58.3]} 8. h3 {[%clk
0:02:45.4]} 8... O-O {[%clk 0:02:52]} 9. Re1 {[%clk 0:02:44.8]} 9... Kh8 {[%clk
0:02:51.6]} 10. Nbd2 {[%clk 0:02:45.1]} 10... Ng8 {[%clk 0:02:51.6]} 11. Nf1
{[%clk 0:02:39.2]} 11... f5 {[%clk 0:02:52.1]} 12. exf5 {[%clk 0:02:40.1]} 12...
Bxf5 {[%clk 0:02:52.5]} 13. Ng3 {[%clk 0:02:38.8]} 13... Bg6 {[%clk 0:02:44.8]}
14. Be3 {[%clk 0:02:37.7]} 14... Bxe3 {[%clk 0:02:43.2]} 15. fxe3 {[%clk
0:02:29.7]} 15... d5 {[%clk 0:02:33.2]} 16. Bb3 {[%clk 0:02:27.9]} 16... Nf6
{[%clk 0:02:18.6]} 17. e4 {[%clk 0:02:13.1]} 17... Qd6 {[%clk 0:01:53.5]} 18.
Nh4 {[%clk 0:02:06.6]} 18... Rad8 {[%clk 0:01:40.4]} 19. Nxg6+ {[%clk
0:02:02.4]} 19... hxg6 {[%clk 0:01:41.3]} 20. exd5 {[%clk 0:01:39.5]} 20... Nxd5
{[%clk 0:01:42.2]} 21. Qg4 {[%clk 0:01:39.3]} 21... Rf4 {[%clk 0:01:32.3]} 22.
Qg5 {[%clk 0:01:31.3]} 22... Qf6 {[%clk 0:01:32.4]} 23. Qxf6 {[%clk 0:01:20]}
23... gxf6 {[%clk 0:01:27.2]} 24. Ne2 {[%clk 0:01:09.3]} 24... Rh4 {[%clk
0:01:27.3]} 25. Rf1 {[%clk 0:01:03.3]} 25... Kg7 {[%clk 0:01:26.5]} 26. Rf3
{[%clk 0:00:57.9]} 26... g5 {[%clk 0:01:20.1]} 27. Raf1 {[%clk 0:00:57.3]} 27...
Nf4 {[%clk 0:01:18.8]} 28. Nxf4 {[%clk 0:00:44.7]} 28... Rxf4 {[%clk 0:01:19.7]}
29. g3 {[%clk 0:00:36.4]} 29... Rxf3 {[%clk 0:01:16.6]} 30. Rxf3 {[%clk
0:00:37.3]} 30... e4 {[%clk 0:00:49.1]} 31. dxe4 {[%clk 0:00:33.3]} 31... Ne5
{[%clk 0:00:49.7]} 32. Rf1 {[%clk 0:00:30.8]} 32... Rd3 {[%clk 0:00:47.6]} 33.
Kg2 {[%clk 0:00:27.3]} 33... Rxc3 {[%clk 0:00:45.1]} 34. Rd1 {[%clk 0:00:20.2]}
34... b6 {[%clk 0:00:44.7]} 35. Rd8 {[%clk 0:00:16.3]} 35... c5 {[%clk
0:00:44.5]} 36. bxc5 {[%clk 0:00:16]} 36... bxc5 {[%clk 0:00:45.4]} 37. Bd5
{[%clk 0:00:16.4]} 37... Rc2+ {[%clk 0:00:41.6]} 38. Kf1 {[%clk 0:00:16.4]}
38... c4 {[%clk 0:00:39.2]} 39. a4 {[%clk 0:00:12]} 39... c3 {[%clk 0:00:37.8]}
40. Rg8+ {[%clk 0:00:11.8]} 40... Kh7 {[%clk 0:00:36.8]} 41. Rc8 {[%clk
0:00:12.7]} 41... Nd3 {[%clk 0:00:23.2]} 42. e5 {[%clk 0:00:07.8]} 42... Rc1+
{[%clk 0:00:13.2]} 43. Ke2 {[%clk 0:00:07.7]} 43... Nxe5 {[%clk 0:00:14.1]} 44.
Be4+ {[%clk 0:00:03]} 44... Kg7 {[%clk 0:00:13.2]} 45. a5 {[%clk 0:00:03.5]}
45... Ra1 {[%clk 0:00:11.4]} 46. Rc7+ {[%clk 0:00:03.9]} 46... Kf8 {[%clk
0:00:11]} 47. Rxc3 {[%clk 0:00:03.8]} 47... Rxa5 {[%clk 0:00:11.3]} 48. Rc8+
{[%clk 0:00:03]} 48... Ke7 {[%clk 0:00:11.2]} 49. Rc7+ {[%clk 0:00:03.5]} 49...
Kd6 {[%clk 0:00:11.5]} 50. Ra7 {[%clk 0:00:03.9]} 50... Ra3 {[%clk 0:00:11.2]}
0-1